Cogmind - Beta 16 @@@ ROGUE MODE // 2025.11.17 @ 20:23:41 Player: Cash Money Result: Destroyed by P-60 Hacker with Shock Rifle Performance ------------- Evolutions (2) 1000 Regions Visited (4) 800 Robots Destroyed (59) 295 Value Destroyed (2066) 2066 Prototype IDs (2) 40 Alien Tech Used (0) 0 Bonus (364) 364 TOTAL SCORE: 4565 Bonus ------- High Alert Combat Kills 164 Entered Garrisons 200 Cogmind --------- Core Integrity 0/550 Matter 271/300 Energy 150/150 System Corruption 15% Temperature Cool (0) Movement Core (150) Ox2 Location -8/Garrison Parts ------- > --- POWER (1) -------- Micro Nuclear Core > --- PROPULSION (3) --- (None) > --- UTILITY (5) ------ (None) > --- WEAPON (2) ------- Light Assault Rifle Light Assault Rifle > --- INVENTORY (5) ---- Heavy Ion Engine Gravmag System ECM Suite Relay Coupler [NC] (26) Relay Coupler [Sentry] (19) Peak State ------------ > --- POWER ------------ Heavy Ion Engine > --- PROPULSION ------- Aluminum Leg Aluminum Leg Aluminum Leg > --- UTILITY ---------- Improved Heat Sink Small Storage Unit Target Analyzer Light Armor Plating Light Armor Plating > --- WEAPON ----------- Improved Datajack Heavy Hammer > --- INVENTORY -------- Heavy Ion Engine Aluminum Leg Aluminum Leg Aluminum Leg ECM Suite Light Armor Plating EM Pulse Cannon Mini Grenade Launcher [Rating: 21] Favorites ----------- Power Heavy Ion Engine Engine Heavy Ion Engine Power Core Micro Nuclear Core Propulsion Aluminum Leg Leg Aluminum Leg Hover Unit Gravmag System Utility Small Storage Unit Device Improved Heat Sink Storage Small Storage Unit Processor Target Analyzer Protection Light Armor Plating Weapon Light Assault Rifle Energy Gun Small Laser Energy Cannon EM Pulse Cannon Ballistic Gun Light Assault Rifle Launcher Mini Grenade Launcher Impact Weapon Heavy Hammer Slashing Weapon Katana Special Melee Weapon Improved Datajack Build | -11 -10 -9 -8 -8 ------- Run | Yrd Mat Mat Mat Gar Slots Evolved 4 | . . 2 2 . Power . | . . . . . Propulsion 1 | . . 1 . . Utility 3 | . . 1 2 . Weapon . | . . . . . Parts Attached 59 | 6 12 22 6 13 Power 8 | 1 2 4 . 1 Engine 7 | 1 2 4 . . Core 1 | . . . . 1 Reactor . | . . . . . Propulsion 20 | 2 3 10 1 4 Treads . | . . . . . Leg 18 | 2 3 10 1 2 Wheel . | . . . . . Hover 2 | . . . . 2 Flight . | . . . . . Utility 13 | 1 3 5 3 1 Device 3 | . . 2 . 1 Storage 2 | 1 1 . . . Processor 1 | . . . 1 . Hackware . | . . . . . Protection 7 | . 2 3 2 . Artifact . | . . . . . Weapon 18 | 2 4 3 2 7 Energy Gun 2 | . 1 . . 1 Energy Cannon 1 | . . . 1 . Ballistic Gun 11 | 2 3 1 . 5 Ballistic Cannon . | . . . . . Launcher 1 | . . 1 . . Special Weapon . | . . . . . Impact Weapon 1 | . . 1 . . Slashing Weapon 1 | . . . . 1 Piercing Weapon . | . . . . . Special Melee Weapon 1 | . . . 1 . Unidentified Prototypes 2 | . 1 1 . . Parts Lost 26 | . . 7 . 19 Power 3 | . . 2 . 1 Propulsion 8 | . . 3 . 5 Utility 6 | . . 1 . 5 Weapon 9 | . . 1 . 8 Highest Loss Streak 6 | . . 6 . 6 To Critical Strikes . | . . . . . Average Backups 6 | 1 5 7 7 7 Power . | . 1 . 1 1 Propulsion 2 | . 2 3 2 1 Utility 2 | . . 1 2 4 Weapon 1 | . 1 2 1 . Tool/Special . | . . . . . Unused Backups 12 | . 2 2 . 8 Power 1 | . . . . 1 Propulsion 1 | . . 1 . . Utility 8 | . . 1 . 7 Weapon 2 | . 2 . . . Tool/Special . | . . . . . Average Slot Usage (%) 82 | . 98 90 89 66 Engine 9 | . 14 9 9 6 Leg 25 | . 28 29 27 21 Device 4 | . . 5 9 4 Storage 10 | . 14 11 9 8 Processor 2 | . . . . 5 Protection 10 | . 12 12 16 4 Ballistic Gun 12 | . 26 18 . 4 Impact Weapon 4 | . . 3 6 5 Special Melee Weapon 1 | . . . 6 . Peak Build Rating 21 | 6 13 17 21 21 Average Rating 12 | 4 7 14 18 13 On Entrance 11 | . 6 12 17 21 Avg Prop Armor Cover (%) . | . . . . . Naked Turns . | . . . . . Heaviest Build 29 | 12 21 28 29 24 Greatest Support 30 | 20 20 30 30 30 Greatest Overweight (x) 7 | . 1 7 . 4 Average Overweight (x) . | . . . . . Largest Inventory Capacity 8 | 8 8 8 8 8 Average Capacity 7 | 6 8 8 8 7 Most Carried 8 | 3 8 8 8 8 Average Carried 6 | 1 5 7 7 7 Final Capacity 8 | 8 8 8 8 5 Final Carried 8 | 3 6 8 8 5 Class Distribution -------------------- 89% | Mutant 10% | Scavenger-Mutant Dominant Class ---------------- Mutant | -10/Materials Mutant | -9/Materials Mutant | -8/Materials Mutant | -8/Garrison Resources | -11 -10 -9 -8 -8 ----------- Run | Yrd Mat Mat Mat Gar Matter Collected 1247 | 240 186 466 30 325 Remotely . | . . . . . Salvage Created 1483 | . 234 611 30 608 Parts 103 | . 23 41 1 38 Haulers Intercepted 1 | . . 1 . . Recyclers Shooed 1 | . 1 . . . Parts Field Recycled . | . . . . . Retrieved Matter . | . . . . . Parts Self-Destructed . | . . . . . Prevented . | . . . . . Parts Restored . | . . . . . Kills | -11 -10 -9 -8 -8 ------- Run | Yrd Mat Mat Mat Gar Combat Hostiles Destroyed 56 | . 9 17 . 30 Melee 13 | . . 3 . 10 Guns 24 | . 9 12 . 3 AOE 10 | . . . . 10 Classes Destroyed 8 | . 3 2 . 3 Hauler 1 | . . 1 . . Watcher 2 | . 1 . 1 . Swarmer 29 | . 5 5 . 19 Grunt 19 | . 4 8 . 7 Brawler 1 | . . . . 1 Duelist 1 | . . . . 1 Sentry 4 | . . 4 . . Programmer 2 | . . . . 2 Best Kill Streak 6 | . 3 6 1 4 Combat Bots Only 6 | . 3 6 . 4 Max Kills in Single Turn 4 | . 1 1 1 4 Gunslinging . | . . . . . Exploded 4 | . . . . 4 Melee 1 | . . 1 . 1 Uniques/NPCs Destroyed . | . . . . . Combat | -11 -10 -9 -8 -8 -------- Run | Yrd Mat Mat Mat Gar Hostile Shots Fired 411 | . 61 128 . 222 Missed 118 | . 20 39 . 59 Hits 293 | . 41 89 . 163 Melee 13 | . . . . 13 Projectile 280 | . 41 89 . 150 Critical Strikes 10 | . . 4 . 6 Actively Blocked 3 | . . 3 . . Part Disruptions 1 | . . . . 1 Damage Taken 3650 | . 413 1123 . 2114 Core 698 | . 60 77 . 561 Absorbed by Shields . | . . . . . Redirected to Shielding 51 | . . 51 . . Regen/Repaired (Parts) 109 | . . . 109 . Core Remaining (%) 85 | 100 76 80 . . Volleys Fired 114 | . 45 30 . 39 Largest 2 | . 2 2 . 2 Hottest 85 | . 60 46 . 85 Shots Fired 217 | . 90 59 . 68 Gun 210 | . 90 59 . 61 Cannon . | . . . . . Launcher 7 | . . . . 7 Special . | . . . . . Kinetic 201 | . 88 59 . 54 Thermal 9 | . 2 . . 7 Explosive 7 | . . . . 7 Electromagnetic . | . . . . . Robot Hit Streak 13 | . 5 13 . 9 Robot Miss Streak 6 | . 6 3 . 3 Penetration Max . | . . . . . Secondary Targets 4 | . . 4 . . Max Gunslinging Chain 1 | . . 1 . . Shots Hit Robots 183 | . 46 55 2 80 Core Hits 65 | . 18 20 1 26 Critical Kills 1 | . . 1 . . Critical Parts Destroyed 8 | . . 1 . 7 Critical Strikes 11 | . . 2 . 9 Burn 1 | . . . . 1 Destroy 2 | . . . . 2 Smash 8 | . . 2 . 6 Melee Attacks 95 | . . 23 6 66 Impact 89 | . . 23 4 62 Slashing 4 | . . . . 4 Piercing . | . . . . . Sneak Attacks 1 | . . 1 . . Combat Hostiles . | . . . . . Follow-up Attacks . | . . . . . Damage Inflicted 4125 | . 385 1100 41 2599 Guns 1438 | . 383 661 . 394 Cannons . | . . . . . Explosions 827 | . . . . 827 Melee 1858 | . . 439 41 1378 Ramming 2 | . 2 . . . Kinetic 1339 | . 359 661 . 319 Thermal 99 | . 24 . . 75 Explosive 827 | . . . . 827 Electromagnetic . | . . . . . Impact 1816 | . . 439 41 1336 Slashing 42 | . . . . 42 Piercing . | . . . . . Highest Corruption 15 | . 2 . . 15 Average Corruption 3 | . 2 . . 4 Corruption Purged . | . . . . . Corruption Blocked . | . . . . . Effects 21 | . 5 . . 16 Message Errors 8 | . 2 . . 6 Matter Fused 5 | . 1 . . 4 Heat Flow Errors 2 | . . . . 2 Energy Discharges 2 | . 1 . . 1 Data Loss (minor) 3 | . 1 . . 2 Data Loss (major) 1 | . . . . 1 Overload Shots . | . . . . . Overflow Damage 619 | . . 60 . 559 Projectiles . | . . . . . Explosions 47 | . . . . 47 Melee 572 | . . 60 . 512 Knockbacks 8 | . . 2 . 6 Impact 8 | . . 2 . 6 Kinetic . | . . . . . Secondary . | . . . . . Self-Inflicted Damage 141 | . . . . 141 Shots 5 | . . . . 5 Rammed . | . . . . . Targets Rammed 1 | . 1 . . . Kicked 1 | . 1 . . . Crushed . | . . . . . Highest Temperature 260 | . 52 5 . 260 Average Temperature 32 | . 14 2 . 82 Received Heat Transfer 855 | . 150 498 . 207 Siege Activations . | . . . . . Martial Activations . | . . . . . Shielding Activations . | . . . . . Robots Disrupted . | . . . . . Combat Hostiles . | . . . . . Robots Corrupted 10 | . . 3 . 7 Combat Hostiles 9 | . . 2 . 7 Parts Fried 9 | . . 2 . 7 Impact Corruptions 27 | . . 5 . 22 Robots Melted . | . . . . . Combat Hostiles . | . . . . . Parts Melted 2 | . . . . 2 Heat Transferred 309 | . 50 . . 259 Parts Sabotaged . | . . . . . Parts Stolen . | . . . . . Parts Stripped . | . . . . . Power Chain Reactions . | . . . . . Alert | -11 -10 -9 -8 -8 ------- Run | Yrd Mat Mat Mat Gar Maximum Alert Level 3 | . . . . 3 Low Security (%) 71 | 100 100 100 100 24 Level 1 2 | . . . . 6 Level 2 8 | . . . . 23 Level 3 17 | . . . . 45 Level 4 . | . . . . . Level 5 . | . . . . . High Security . | . . . . . Max Security . | . . . . . Peak Influence 791 | . 132 145 57 791 Initial 57 | . . . 57 . Average 226 | . 42 67 11 522 Influence Increases 1659 | . 268 447 8 936 Destroy 0b10 Robot/C 1120 | . 180 340 . 600 Destroy 0b10 Robot/NC 15 | . 5 5 5 . Destroy Leader 146 | . 32 72 2 40 Successful Hack 31 | . 6 9 . 16 Anti-Garrison Action 150 | . . . . 150 Destroy Structure 47 | . . 6 1 40 Lose Combat Pursuer 150 | . 45 15 . 90 Influence Decreases 913 | . 268 310 145 190 Entered New Map 80 | . . . 80 . Time Decay 457 | . 152 240 65 . Lost Part 260 | . . 70 . 190 Purge Threat 116 | . 116 . . . Squads Dispatched 1 | . 1 . . . Investigation . | . . . . . Extermination . | . . . . . Reinforcement 1 | . 1 . . . Assault . | . . . . . Garrison . | . . . . . Intercept . | . . . . . Searches Triggered . | . . . . . Construction Impeded . | . . . . . Haulers Reinforced . | . . . . . Active Scanning Responses . | . . . . . Cargo Convoy Interrupts . | . . . . . Stealth | -11 -10 -9 -8 -8 --------- Run | Yrd Mat Mat Mat Gar Distress Signals 2 | . 1 1 . . Communications Jammed . | . . . . . Distress Signals . | . . . . . Times Spotted 84 | . 21 25 2 36 Peak Tracking Total 7 | . 6 7 2 5 Tactical Retreats 12 | . 2 5 . 5 ECM-based Alert Blocks 10 | . . 10 . . Traps | -11 -10 -9 -8 -8 ------- Run | Yrd Mat Mat Mat Gar Traps Triggered 2 | . 1 . . 1 Indirectly . | . . . . . Trap Hack Attempts . | . . . . . Triggered . | . . . . . Disarmed . | . . . . . Reprogrammed . | . . . . . Reused . | . . . . . Traps Extracted . | . . . . . Installed . | . . . . . Triggered . | . . . . . Machines | -11 -10 -9 -8 -8 ---------- Run | Yrd Mat Mat Mat Gar Machines Disabled 3 | . . . . 3 Max in Single Turn 1 | . . . . 1 Garrison Relay 4 | . . . . 4 Machines Repaired . | . . . . . Machines Dismantled . | . . . . . Machines Sabotaged . | . . . . . Overloaded Fab Kills . | . . . . . Hacking | -11 -10 -9 -8 -8 --------- Run | Yrd Mat Mat Mat Gar Machines Accessed 8 | . 2 3 2 1 Terminals 6 | . 2 3 . 1 Fabricators . | . . . . . Repair Stations 1 | . . . 1 . Recycling Units . | . . . . . Scanalyzers . | . . . . . Garrison Access 1 | . . . 1 . Total Hacks 26 | . 4 9 11 2 Successful 14 | . 2 3 8 1 Failed 12 | . 2 6 3 1 Catastrophic 1 | . 1 . . . Database Lockouts . | . . . . . Manual 8 | . 3 5 . . Terminals 15 | . 4 9 . 2 Fabricators . | . . . . . Repair Stations 10 | . . . 10 . Recycling Units . | . . . . . Scanalyzers . | . . . . . Garrison Access 1 | . . . 1 . Terminal Hacks 5 | . 2 2 . 1 Terminal Index 1 | . 1 . . . Unreport Threat 1 | . 1 . . . Locate Traps 1 | . . 1 . . Zone Layout 1 | . . 1 . . Security Stations 1 | . . . . 1 Fabricator Hacks . | . . . . . Repair Station Hacks 7 | . . . 7 . Scan Component 4 | . . . 4 . Repair 3 | . . . 3 . Recycling Unit Hacks . | . . . . . Scanalyzer . | . . . . . Garrison Access Hacks 1 | . . . 1 . Unlock Access 1 | . . . 1 . Unauthorized Hacks 1 | . . 1 . . Terminals 1 | . . 1 . . Botnet 1 | . . 1 . . Fabricators . | . . . . . Repair Stations . | . . . . . Recycling Units . | . . . . . Scanalyzers . | . . . . . Garrison Access . | . . . . . Data Cores Recovered . | . . . . . Used . | . . . . . Hacking Detections 7 | . 2 3 1 1 Full Trace Events . | . . . . . Feedback Events . | . . . . . Feedback Blocked . | . . . . . Robot Schematics Acquired . | . . . . . Robots Built . | . . . . . Authchips . | . . . . . Time . | . . . . . Total Robot Build Rating . | . . . . . Part Schematics Acquired . | . . . . . Parts Built . | . . . . . Authchips . | . . . . . Time . | . . . . . Total Part Build Rating . | . . . . . Part Studies Acquired . | . . . . . Parts Repaired 3 | . . . 3 . Time 78 | . . . 78 . Parts Recycled . | . . . . . Recycled Matter . | . . . . . Retrieved Matter . | . . . . . Retrieved Components . | . . . . . Parts Scanalyzed . | . . . . . Part Schematics Acquired . | . . . . . Parts Damaged . | . . . . . Bothacking | -11 -10 -9 -8 -8 ------------ Run | Yrd Mat Mat Mat Gar Used RIF Installer . | . . . . . Robots Hacked 1 | . . . 1 . Non-combat 1 | . . . 1 . Combat . | . . . . . Robot Hacks Applied 1 | . . . 1 . parse_system 1 | . . . 1 . Relay Couplers Released 15 | . . . . 15 Machine Destruction 12 | . . . . 12 Programmers 3 | . . . . 3 Fabnet Peak Effective % . | . . . . . Robots Rewired . | . . . . . Allies Hacked . | . . . . . Hacks Repelled . | . . . . . Allies | -11 -10 -9 -8 -8 -------- Run | Yrd Mat Mat Mat Gar Total Allies . | . . . . . Largest Group . | . . . . . Highest-Rated Group . | . . . . . Highest-Rated Ally . | . . . . . Total Orders . | . . . . . Ally Attacks . | . . . . . Total Damage . | . . . . . Kills . | . . . . . Allies Corrupted . | . . . . . Allies Melted . | . . . . . Intel | -11 -10 -9 -8 -8 ------- Run | Yrd Mat Mat Mat Gar Active Infowar (turns) 112 | . . 112 . . ECM 112 | . . 112 . . Robot Analysis Total . | . . . . . Derelict Logs Recovered . | . . . . . Drone Launches . | . . . . . Drone Recoveries . | . . . . . Exploration | -11 -10 -9 -8 -8 ------------- Run | Yrd Mat Mat Mat Gar Turns Passed 2548 | 59 599 591 326 973 Spaces Moved 1301 | 42 312 294 138 515 Core 18 | 4 . 9 . 5 Treads . | . . . . . Legs 1279 | 38 312 285 138 506 Wheels . | . . . . . Hover 4 | . . . . 4 Flight . | . . . . . Fastest Speed 50 | 50 120 120 120 56 Average Speed 122 | 113 122 125 120 121 Slowest Speed 400 | 120 190 400 120 250 Overloaded Moves . | . . . . . Propulsion Burnouts . | . . . . . Robots Hopped . | . . . . . Potential Cave-ins . | . . . . . Cave-ins Triggered . | . . . . . Exploration Rate (%) 27 | 4 47 26 14 45 Regions Visited 4 Branch Regions . Pre-discovered Areas . | . . . . . Known Exits Taken 1 | . . . 1 . Unknown Exits Taken 3 | 1 1 1 . . Scrap Searched . | . . . . . Spaces Dug 17 | . . 6 2 9 Terrain Destroyed 55 | . . 6 2 47 Melee 8 | . . 6 2 . Projectile . | . . . . . AOE 47 | . . . . 47 Terrain Rammed . | . . . . . Walls Destroyed . | . . . . . Machines Disabled . | . . . . . Actions | -11 -10 -9 -8 -8 --------- Run | Yrd Mat Mat Mat Gar Total 1904 | 50 458 419 287 690 Wait 250 | . 74 24 128 24 Move 1298 | 41 311 293 138 515 Hop . | . . . . . Pick Up 24 | 3 4 6 . 11 Fast Attach 33 | 6 4 10 4 9 Attach 11 | . . 3 2 6 Detach 6 | . . 2 2 2 Swap 33 | . 8 14 6 5 Drop 34 | . 11 14 1 8 Fire 114 | . 45 30 . 39 Melee 95 | . . 23 6 66 Ram . | . . . . . Kick 1 | . 1 . . . Crush . | . . . . . Escape Stasis 5 | . . . . 5 Rewire . | . . . . . Trap . | . . . . . Miscellaneous . | . . . . . Route ------- -11/Scrapyard -10/Materials -9/Materials -8/Materials -8/Garrison (discovered 1 exit: [*Mat]) History --------- Turn | Location | Event 7 | -11/Scrapyard | Discovered new exit (range 15) 60 | -11/Scrapyard | Entered Materials 317 | -10/Materials | Build established: Mutant 582 | -10/Materials | Discovered new exit (range 16) 659 | -10/Materials | Entered another Materials area 659 | -9/Materials | Evolved 2 slots: Propulsion x1, Utility x1 981 | -9/Materials | Discovered new exit (range 8) 1055 | -9/Materials | Lost 6 parts (1p3n1u1w) 1250 | -9/Materials | Entered another Materials area 1250 | -8/Materials | Evolved 2 slots: Utility x2 1303 | -8/Materials | Repaired Aluminum Leg 1330 | -8/Materials | Repaired Lgt. Armor Plating 1358 | -8/Materials | Repaired Aluminum Leg 1576 | -8/Materials | Identified exit to Garrison 1576 | -8/Materials | Entered Garrison 1592 | -8/Garrison | Triggered checkpoint 1628 | -8/Garrison | Triggered checkpoint 1665 | -8/Garrison | Garrison Relay disabled 1814 | -8/Garrison | Triggered checkpoint 1876 | -8/Garrison | Triggered checkpoint 1910 | -8/Garrison | Garrison Relay disabled 1928 | -8/Garrison | Learned Materials security intel 1956 | -8/Garrison | Triggered checkpoint 2018 | -8/Garrison | Triggered checkpoint 2053 | -8/Garrison | Lost 3 parts (2n1u) 2053 | -8/Garrison | Garrison Relay disabled 2137 | -8/Garrison | Discovered new exit (range 12) 2168 | -8/Garrison | Triggered checkpoint 2200 | -8/Garrison | Triggered checkpoint 2212 | -8/Garrison | Core integrity fell below 50% 2244 | -8/Garrison | Lost 3 parts (2u1w) 2309 | -8/Garrison | System corruption reached 10% 2352 | -8/Garrison | Lost 6 parts (1p2n3w) 2448 | -8/Garrison | Triggered checkpoint 2490 | -8/Garrison | Core integrity fell below 20% 2535 | -8/Garrison | Garrison Relay disabled 2538 | -8/Garrison | Lost 3 parts (1n2w) 2549 | -8/Garrison | Destroyed by P-60 Hacker with Shock Rifle Last Messages --------------- 02484_ 30IE/FN0LWOQQGZHMAALTBWK=Q1NS 02486_ Lgt. Assault Rifle destroyed. 02498_ Aluminum Leg destroyed. 02499_ VB0B=LCGS&3 2A,Z XOZ WUZTR#FIORIE%E8C% 02507_ Lgt. Assault Rifle destroyed. 02511_ P-60 Hacker destroyed. 02514_ Acquired Mic. Nuclear Core. 02516_ Acquired Gravmag System. 02518_ Acquired 42 matter. 02519_ Acquired Gravmag System. 02532_ OIF/#F V,WX&2HYGPTVS#QY7YF9YO&C,G0 02535_ Garrison Relay disabled. 02535_ Relay Coupler [Hunter] tumbles out of relay unit. 02535_ Relay Coupler [Duelist] tumbles out of relay unit. 02538_ Sml. Storage Unit destroyed. 02540_ P-60 Hacker suffers critical hit (Destroy). 02540_ Destroyed Shock Rifle. Map ----- +----------------------------------------------------+ | ?????????????????????????# #??????## ## ## | | ?????????????????????????# #???????# ## ## # | | ?????????????????????????# #???????# ########%/# | | ?????????????????????????# #???????# #????###* # | | ?????????????????????????# #???????# #????## | | ?????????????????????????# #???????# #???## | | ????????????????########## ######### #???# # % | | ????????????????# #???# # # | | ????????????????# #???## #* | | ????????????????# ####### #############????# | | ?????????????????????????# #????????????????### | | ?????????????????????????# #????????????????### # | | ?????????????????????????# #????????????????#"# # | | ?????????????????????????# #####????????????#" # | | ?????????????????????????# #????????????# !! # | | ?????????????????????????##### #????????????#" ! # | | ?????????????????????????????# #????????????#"# # | | ?????????????????????????????# #????????????#### # | | ?????????????????????????????# ###?????????????# # | | ?????????????????????????????# #????????????## # | | ?????????????????????????????# #????????????#" # | | ?????????????????????????????# #????????????#T # | | ????????????????######???????# ###????????????#""# | | ????????????????#""" ######## #??????????????#### | | ????????????????#" p=! #?????????????????? | | ????????????????#" ###@!!## #?????????????????? | | ????????????????#" ?#"""!"# #?????????????????? | | ????????????????#" ??####### #?????????????????? | | ??????????????? ????????# #?????????????????? | | ????????????? ?????????# #?????????????????? | | ????????????#" ????????? #?????????????????? | | ????????????#"" ""?????????? ?????????????????? | | ????????????#""""##??????????T##?????????????????? | | ?????????????####????????????#???????????????????? | | ?????????????????????????????????????????????????? | | ?????????????????????????????????????????????????? | | ?????????????????????????????????????????????????? | | ?????????????????????????????????????????????????? | | ?????????????????????????????????????????????????? | | ?????????????????????????????????????????????????? | | ?????????????????????????????????????????????????? | | ?????????????????????????????????????????????????? | | ?????????????????????????????????????????????????? | | | | | | | | | | | | | | | +----------------------------------------------------+ Best States ------------- Heat Dissipation 45 Energy Generation 15 Energy Capacity 280 Matter Stores 300 Matter Capacity 300 Sight Range 16 Terrain Scan Density 10 ECM Strength 1 Armor Coverage 375 Weapon Shielding 33 Evasion (%) 55 Target Analysis 5 Item Schematics ----------------- None Robot Schematics ------------------ None Fabricated ------------ Nothing Repaired ---------- Aluminum Leg | 54% | -8/Materials Lgt. Armor Plating | 56% | -8/Materials Aluminum Leg | 67% | -8/Materials Studied --------- None Alien Tech Used ----------------- None Achievements -------------- Hydra Challenges ------------ None Game ------ Seed CoreHelicalDetonator Manual? 0 Play Time 00:25:58 Cumulative 113.3 hours Start 2025.11.17 @ 19:16:17 End 2025.11.17 @ 20:23:41 Sessions 1 Manual Loads 0 Difficulty Rogue Special Mode None Game No. 59 Rogue 35 Adventurer 9 Explorer 15 Win Type - Total 7 Types 4/1/0/0/0/0/0/0/2/0 Lore% 42 Gallery% 55 Achievement% 39 Wizard Run 0 Options --------- Layout 1 ASCII 0 Keyboard 0 Movement Mouse Keybinds 0 Fullscreen 2 Font 32/Terminus Map View 50x35 Zoom Use 0% Tactical HUD 1 Map Filters NONE Filters NONE Steam 1 RUN: 9cd62cf9-616e-476c-a294-1311ff811b87